fUST/lending_fUST_20250717
["ID","MTS","AMOUNT","RATE_DAILY","PERIOD"]
[372602400,1752701443004,-460.0,0.00019017,2]
[372602402,1752701443014,-502.35,0.00019017,2]
[372602404,1752701443023,-460.0,0.00019017,2]
[372602406,1752701443032,-460.0,0.00019017,2]
[372602408,1752701443042,-460.0,0.00019017,2]
[372602410,1752701443052,-460.0,0.00019017,2]
[372602413,1752701443062,-460.0,0.00019017,2]
[372602416,1752701443073,-460.0,0.00019017,2]
[372602419,1752701443083,-460.0,0.00019017,2]
[372602423,1752701443094,-973.31,0.00019017,2]
[372602426,1752701443104,-460.0,0.00019017,2]
[372602429,1752701443114,-460.0,0.00019017,2]
[372602432,1752701443123,-460.0,0.00019017,2]
[372602435,1752701443133,-4139.78,0.00019017,2]
[372602438,1752701443143,-460.0,0.00019017,2]
[372602441,1752701443152,-392.95,0.00019017,2]
[372602444,1752701443162,-460.0,0.00019017,2]
[372602447,1752701443172,-460.0,0.00019017,2]
[372602450,1752701443181,-460.0,0.00019017,2]
[372602453,1752701443191,-905.56,0.00019017,2]
[372602456,1752701443200,-460.0,0.00019017,2]
[372602459,1752701443210,-460.0,0.00019017,2]
[372602462,1752701443219,-403.32,0.00019017,2]
[372602465,1752701443229,-460.0,0.00019017,2]
[372602468,1752701443238,-460.0,0.00019017,2]
[372602471,1752701443247,-500.0,0.00019073,2]
[372602474,1752701443256,-460.0,0.00019101,2]
[372602477,1752701443266,-2420.32,0.00019101,2]
[372602480,1752701443277,-764.07,0.00019101,2]
[372602482,1752701443286,-575.01,0.00019101,2]
[372602484,1752701443295,-1155.56,0.00019101,2]
[372602486,1752701443304,-2407.79,0.00019101,2]
[372602488,1752701443315,-460.0,0.00019125,2]
[372602490,1752701443325,-3592.4174374,0.00019141,2]
[372602492,1752701443335,-216.482207,0.00019178,2]
[372602494,1752701443344,-870.23716933,0.0001919,2]
[372602496,1752701443354,-500.86413658,0.00019273,2]
[372602498,1752701443364,-500.0,0.00019273,2]
[372602500,1752701443374,-460.0,0.0001929,2]
[372602502,1752701443383,-226.7293452,0.0001929,2]
[372602504,1752701443393,-460.0,0.0001929,2]
[372602506,1752701443402,-460.0,0.0001929,2]
[372602508,1752701443411,-460.0,0.0001929,2]
[372602510,1752701443420,-460.0,0.0001929,2]
[372602512,1752701443430,-321.33047103,0.0001929,2]
[372602514,1752701443439,-460.0,0.0001929,2]
[372602516,1752701443448,-460.0,0.0001929,2]
[372602518,1752701443458,-284.26,0.0001929,2]
[372602520,1752701443467,-460.0,0.0001929,2]
[372602522,1752701443476,-257.012157,0.0001929,2]
[372602524,1752701443487,-460.0,0.0001929,2]
[372602526,1752701443496,-460.0,0.0001929,2]
[372602528,1752701443505,-460.0,0.0001929,2]
[372602530,1752701443515,-460.0,0.0001929,2]
[372602532,1752701443524,-460.0,0.0001929,2]
[372602534,1752701443533,-460.0,0.0001929,2]
[372602536,1752701443544,-492.73,0.0001929,2]
[372602538,1752701443553,-460.0,0.0001929,2]
[372602541,1752701443562,-460.0,0.0001929,2]
[372602543,1752701443572,-460.0,0.0001929,2]
[372602546,1752701443581,-460.0,0.0001929,2]
[372602549,1752701443591,-460.0,0.0001929,2]
[372602551,1752701443600,-460.0,0.0001929,2]
[372602553,1752701443610,-460.0,0.0001929,2]
[372602555,1752701443619,-460.0,0.0001929,2]
[372602557,1752701443629,-460.0,0.0001929,2]
[372602559,1752701443638,-3589.75,0.0001929,2]
[372602561,1752701443648,-460.0,0.0001929,2]
[372602563,1752701443658,-460.0,0.0001929,2]
[372602565,1752701443667,-2048.29,0.0001929,2]
[372602567,1752701443677,-460.0,0.0001929,2]
[372602569,1752701443686,-543.61,0.0001929,2]
[372602571,1752701443696,-460.0,0.0001929,2]
[372602573,1752701443705,-348.30608054,0.0001929,2]
[372602575,1752701443715,-460.0,0.0001929,2]
[372602577,1752701443724,-460.0,0.0001929,2]
[372602579,1752701443733,-677.6,0.0001929,2]
[372602581,1752701443742,-460.0,0.0001929,2]
[372602583,1752701443752,-460.0,0.0001929,2]
[372602585,1752701443761,-460.0,0.0001929,2]
[372602587,1752701443771,-460.0,0.0001929,2]
[372602589,1752701443782,-460.0,0.0001929,2]
[372602591,1752701443792,-1529.53,0.0001929,2]
[372602593,1752701443802,-460.0,0.0001929,2]
[372602595,1752701443816,-460.0,0.0001929,2]
[372602597,1752701443825,-460.0,0.0001929,2]
[372602599,1752701443835,-278.26,0.0001929,2]
[372602601,1752701443847,-2116.11,0.0001929,2]
[372602603,1752701443856,-460.0,0.0001929,2]
[372602605,1752701443866,-460.0,0.0001929,2]
[372602608,1752701443876,-460.0,0.0001929,2]
[372602610,1752701443887,-460.0,0.0001929,2]
[372602611,1752701443896,-460.0,0.0001929,2]
[372602614,1752701443905,-460.0,0.0001929,2]
[372602616,1752701443915,-460.0,0.0001929,2]
[372602617,1752701443924,-460.0,0.0001929,2]
[372602619,1752701443933,-460.0,0.0001929,2]
[372602621,1752701443943,-460.0,0.0001929,2]
[372602624,1752701443955,-1323.64,0.0001929,2]
[372602626,1752701443964,-460.0,0.0001929,2]
[372602628,1752701443974,-1485.63,0.0001929,2]
[372602630,1752701443984,-460.0,0.0001929,2]
[372602632,1752701443995,-460.0,0.0001929,2]
[372602634,1752701444005,-460.0,0.0001929,2]
[372602636,1752701444015,-872.37,0.0001929,2]
[372602638,1752701444024,-460.0,0.0001929,2]
[372602639,1752701444034,-460.0,0.0001929,2]
[372602641,1752701444043,-460.0,0.0001929,2]
[372602644,1752701444053,-460.0,0.0001929,2]
[372602645,1752701444063,-460.0,0.0001929,2]
[372602648,1752701444073,-460.0,0.0001929,2]
[372602650,1752701444082,-460.0,0.0001929,2]
[372602652,1752701444092,-460.0,0.0001929,2]
[372602654,1752701444102,-460.0,0.0001929,2]
[372602656,1752701444111,-229.80287337,0.00019291,2]
[372602658,1752701444120,-460.0,0.00019291,2]
[372602660,1752701444130,-460.0,0.00019291,2]
[372602662,1752701444139,-460.0,0.00019291,2]
[372602664,1752701444148,-460.0,0.00019291,2]
[372602666,1752701444158,-460.0,0.00019291,2]
[372602668,1752701444168,-460.0,0.00019291,2]
[372602670,1752701444177,-460.0,0.00019291,2]
[372602672,1752701444187,-460.0,0.00019291,2]
[372602674,1752701444196,-460.0,0.00019291,2]
[372602676,1752701444206,-460.0,0.00019291,2]
[372602678,1752701444216,-460.0,0.00019291,2]
[372602680,1752701444226,-460.0,0.00019291,2]
[372602682,1752701444235,-460.0,0.00019291,2]
[372602684,1752701444245,-460.0,0.00019291,2]
[372602686,1752701444255,-460.0,0.00019291,2]
[372602688,1752701444265,-460.0,0.00019291,2]
[372602690,1752701444274,-460.0,0.00019291,2]
[372602692,1752701444284,-460.0,0.00019291,2]
[372602694,1752701444294,-502.35,0.00019291,2]
[372602696,1752701444304,-460.0,0.00019291,2]
[372602698,1752701444313,-460.0,0.00019291,2]
[372602700,1752701444323,-460.0,0.00019291,2]
[372602702,1752701444333,-460.0,0.00019291,2]
[372602704,1752701444342,-460.0,0.00019291,2]
[372602706,1752701444352,-973.31,0.00019291,2]
[372602708,1752701444361,-460.0,0.00019291,2]
[372602710,1752701444371,-460.0,0.00019291,2]
[372602712,1752701444380,-4139.78,0.00019291,2]
[372602714,1752701444390,-460.0,0.00019291,2]
[372602716,1752701444399,-460.0,0.00019291,2]
[372602718,1752701444409,-460.0,0.00019291,2]
[372602720,1752701444418,-905.56,0.00019291,2]
[372602722,1752701444428,-460.0,0.00019291,2]
[372602724,1752701444437,-460.0,0.00019291,2]
[372602726,1752701444446,-460.0,0.00019291,2]
[372602728,1752701444455,-306.48796736,0.00019321,2]
[372602730,1752701444465,-1000.0,0.00019321,2]
[372602732,1752701444474,-100000.0,0.00019329,2]
[372602734,1752701444484,-155.14699391,0.00019373,2]
[372602736,1752701444494,-172.74500292,0.00019373,2]
[372602738,1752701444503,-500.0,0.00019373,2]
[372602740,1752701444513,-313.94562094,0.00019373,2]
[372602742,1752701444524,-500.0,0.00019373,2]
[372602744,1752701444533,-500.0,0.00019373,2]
[372602746,1752701444543,-502.71250019,0.00019373,2]
[372602748,1752701444552,-500.0,0.00019373,2]
[372602750,1752701444562,-500.0,0.00019373,2]
[372602752,1752701444571,-501.3204257,0.00019373,2]
[372602754,1752701444581,-500.0,0.00019373,2]
[372602756,1752701444591,-500.0,0.00019373,2]
[372602758,1752701444600,-500.0,0.00019373,2]
[372602760,1752701444610,-500.0,0.00019373,2]
[372602762,1752701444619,-500.0,0.00019373,2]
[372602764,1752701444628,-385.63309661,0.00019373,2]
[372602766,1752701444638,-443.04809324,0.00019373,2]
[372602768,1752701444647,-500.0,0.00019373,2]
[372602770,1752701444657,-500.0,0.00019373,2]
[372602772,1752701444667,-374.74725331,0.00019373,2]
[372602774,1752701444676,-500.0,0.00019373,2]
[372602776,1752701444685,-500.0,0.00019373,2]
[372602778,1752701444695,-500.0,0.00019373,2]
[372602780,1752701444704,-169.28095686,0.00019373,2]
[372602782,1752701444713,-500.0,0.00019373,2]
[372602784,1752701444723,-500.0,0.00019373,2]
[372602786,1752701444732,-500.0,0.00019373,2]
[372602788,1752701444742,-220.50252667,0.00019374,2]
[372602790,1752701444751,-460.0,0.00019375,2]
[372602792,1752701444761,-2420.32,0.00019375,2]
[372602794,1752701444770,-764.07,0.00019375,2]
[372602796,1752701444782,-575.01,0.00019375,2]
[372602798,1752701444792,-1155.56,0.00019375,2]
[372602800,1752701444801,-2407.79,0.00019375,2]
[372602802,1752701444815,-3592.4174374,0.00019383,2]
[372602804,1752701444826,-124031.87864081,0.0001945,2]
[372602806,1752701444839,-500.0,0.00019473,2]
[372602808,1752701444849,-500.0,0.00019473,2]
[372602810,1752701444858,-344.66638024,0.00019473,2]
[372602812,1752701444868,-500.0,0.00019473,2]
[372602813,1752701444878,-500.0,0.00019473,2]
[372602814,1752701444889,-158.09374785,0.00019473,2]
[372602815,1752701444899,-160.09584313,0.00019473,2]
[372602816,1752701444909,-460.0,0.00019564,2]
[372602817,1752701444919,-460.0,0.00019564,2]
[372602818,1752701444929,-460.0,0.00019564,2]
[372602819,1752701444939,-460.0,0.00019564,2]
[372602820,1752701444948,-460.0,0.00019564,2]
[372602821,1752701444958,-460.0,0.00019564,2]
[372602822,1752701444968,-460.0,0.00019564,2]
[372602823,1752701444978,-284.46,0.00019564,2]
[372602824,1752701444988,-460.0,0.00019564,2]
[372602825,1752701444998,-460.0,0.00019564,2]
[372602826,1752701445008,-460.0,0.00019564,2]
[372602827,1752701445018,-460.0,0.00019564,2]
[372602828,1752701445029,-460.0,0.00019564,2]
[372602829,1752701445039,-460.0,0.00019564,2]
[372602830,1752701445048,-460.0,0.00019564,2]
[372602831,1752701445058,-512.38,0.00019564,2]
[372602832,1752701445070,-460.0,0.00019564,2]
[372602833,1752701445080,-460.0,0.00019564,2]
[372602834,1752701445090,-3589.75,0.00019564,2]
[372602835,1752701445100,-460.0,0.00019564,2]
[372602836,1752701445109,-2048.29,0.00019564,2]
[372602837,1752701445118,-460.0,0.00019564,2]
[372602838,1752701445128,-543.61,0.00019564,2]
[372602840,1752701445137,-460.0,0.00019564,2]
[372602842,1752701445147,-460.0,0.00019564,2]
[372602844,1752701445157,-609.80393519,0.00019564,2]
[372602846,1752701445166,-677.6,0.00019564,2]
[372602848,1752701445176,-460.0,0.00019564,2]
[372602850,1752701445186,-460.0,0.00019564,2]
[372602852,1752701445195,-561.69027837,0.00019564,2]
[372602854,1752701445204,-460.0,0.00019564,2]
[372602856,1752701445213,-460.0,0.00019564,2]
[372602858,1752701445223,-1529.53,0.00019564,2]
[372602860,1752701445232,-460.0,0.00019564,2]
[372602862,1752701445241,-460.0,0.00019564,2]
[372602864,1752701445251,-460.0,0.00019564,2]
[372602866,1752701445261,-2116.11,0.00019564,2]
[372602868,1752701445270,-320.63307763,0.00019564,2]
[372602870,1752701445281,-460.0,0.00019564,2]
[372602872,1752701445290,-460.0,0.00019564,2]
[372602874,1752701445299,-460.0,0.00019564,2]
[372602876,1752701445308,-460.0,0.00019564,2]
[372602878,1752701445318,-460.0,0.00019564,2]
[372602880,1752701445328,-413.39621668,0.00019564,2]
[372602882,1752701445338,-460.0,0.00019564,2]
[372602884,1752701445348,-1323.64,0.00019564,2]
[372602886,1752701445358,-460.0,0.00019564,2]
[372602888,1752701445367,-1485.63,0.00019564,2]
[372602890,1752701445377,-460.0,0.00019564,2]
[372602892,1752701445387,-460.0,0.00019564,2]
[372602894,1752701445396,-872.37,0.00019564,2]
[372602896,1752701445405,-460.0,0.00019564,2]
[372602898,1752701445415,-460.0,0.00019564,2]
[372602900,1752701445424,-460.0,0.00019564,2]
[372602902,1752701445433,-460.0,0.00019564,2]
[372602904,1752701445443,-460.0,0.00019564,2]
[372602906,1752701445452,-460.0,0.00019564,2]
[372602908,1752701445461,-460.0,0.00019564,2]
[372602910,1752701445471,-460.0,0.00019564,2]
[372602912,1752701445482,-460.0,0.00019565,2]
[372602914,1752701445492,-460.0,0.00019565,2]
[372602916,1752701445501,-460.0,0.00019565,2]
[372602918,1752701445510,-443.59969883,0.00019565,2]
[372602920,1752701445519,-460.0,0.00019565,2]
[372602922,1752701445532,-460.0,0.00019565,2]
[372602924,1752701445542,-460.0,0.00019565,2]
[372602926,1752701445551,-460.0,0.00019565,2]
[372602928,1752701445562,-460.0,0.00019565,2]
[372602930,1752701445571,-460.0,0.00019565,2]
[372602932,1752701445580,-460.0,0.00019565,2]
[372602934,1752701445590,-460.0,0.00019565,2]
[372602936,1752701445600,-460.0,0.00019565,2]
[372602938,1752701445609,-460.0,0.00019565,2]
[372602940,1752701445619,-460.0,0.00019565,2]
[372602942,1752701445628,-523.69,0.00019565,2]
[372602944,1752701445638,-502.35,0.00019565,2]
[372602946,1752701445647,-460.0,0.00019565,2]
[372602948,1752701445657,-460.0,0.00019565,2]
[372602950,1752701445667,-460.0,0.00019565,2]
[372602952,1752701445676,-460.0,0.00019565,2]
[372602954,1752701445685,-973.31,0.00019565,2]
[372602956,1752701445694,-460.0,0.00019565,2]
[372602969,1752701445809,-4139.78,0.00019565,2]
[372602972,1752701445819,-460.0,0.00019565,2]
[372602975,1752701445829,-460.0,0.00019565,2]
[372602978,1752701445839,-472.09,0.00019565,2]
[372602980,1752701445848,-905.56,0.00019565,2]
[372602984,1752701445858,-460.0,0.00019565,2]
[372602986,1752701445867,-460.0,0.00019565,2]
[372602989,1752701445879,-225.40039088,0.0001959,2]
[372602991,1752701445893,-1000.0,0.00019621,2]
[372602993,1752701445902,-3592.4174374,0.00019624,2]
[372602995,1752701445912,-460.0,0.00019649,2]
[372602997,1752701445921,-2420.32,0.00019649,2]
[372602999,1752701445931,-764.07,0.00019649,2]
[372603001,1752701445940,-575.01,0.00019649,2]
[372603003,1752701445950,-1155.56,0.00019649,2]
[372603005,1752701445960,-2407.79,0.00019649,2]
[372603007,1752701445970,-460.0,0.00019838,2]
[372603009,1752701445980,-460.0,0.00019838,2]
[372603011,1752701445989,-460.0,0.00019838,2]
[372603013,1752701446000,-460.0,0.00019838,2]
[372603015,1752701446010,-460.0,0.00019838,2]
[372603017,1752701446019,-460.0,0.00019838,2]
[372603018,1752701446030,-460.0,0.00019838,2]
[372603020,1752701446039,-460.0,0.00019838,2]
[372603022,1752701446049,-460.0,0.00019838,2]
[372603024,1752701446058,-608.32,0.00019838,2]
[372603026,1752701446067,-460.0,0.00019838,2]
[372603029,1752701446087,-3589.75,0.00019838,2]
[372603031,1752701446097,-2048.29,0.00019838,2]
[372603033,1752701446107,-461.69,0.00019838,2]
[372603035,1752701446118,-460.0,0.00019838,2]
[372603037,1752701446128,-543.61,0.00019838,2]
[372603039,1752701446137,-460.0,0.00019838,2]
[372603041,1752701446147,-460.0,0.00019838,2]
[372603043,1752701446157,-677.6,0.00019838,2]
[372603045,1752701446167,-460.0,0.00019838,2]
[372603047,1752701446177,-460.0,0.00019838,2]
[372603049,1752701446186,-460.0,0.00019838,2]
[372603051,1752701446197,-460.0,0.00019838,2]
[372603053,1752701446207,-1529.53,0.00019838,2]
[372603055,1752701446218,-460.0,0.00019838,2]
[372603057,1752701446228,-460.0,0.00019838,2]
[372603060,1752701446238,-460.0,0.00019838,2]
[372603061,1752701446248,-2116.11,0.00019838,2]
[372603063,1752701446258,-460.0,0.00019838,2]
[372603065,1752701446268,-460.0,0.00019838,2]
[372603067,1752701446279,-460.0,0.00019838,2]
[372603070,1752701446289,-460.0,0.00019838,2]
[372603071,1752701446299,-460.0,0.00019838,2]
[372603073,1752701446308,-460.0,0.00019838,2]
[372603075,1752701446318,-1323.64,0.00019838,2]
[372603077,1752701446328,-460.0,0.00019838,2]
[372603079,1752701446337,-1485.63,0.00019838,2]
[372603081,1752701446347,-460.0,0.00019838,2]
[372603083,1752701446357,-460.0,0.00019838,2]
[372603085,1752701446368,-872.37,0.00019838,2]
[372603087,1752701446378,-460.0,0.00019838,2]
[372603089,1752701446387,-460.0,0.00019838,2]
[372603091,1752701446397,-460.0,0.00019838,2]
[372603093,1752701446407,-460.0,0.00019838,2]
[372603095,1752701446417,-482.07672015,0.00019838,2]
[372603097,1752701446426,-460.0,0.00019838,2]
[372603100,1752701446436,-460.0,0.00019838,2]
[372603102,1752701446445,-460.0,0.00019839,2]
[372603103,1752701446455,-460.0,0.00019839,2]
[372603106,1752701446465,-460.0,0.00019839,2]
[372603108,1752701446475,-460.0,0.00019839,2]
[372603109,1752701446484,-460.0,0.00019839,2]
[372603111,1752701446494,-460.0,0.00019839,2]
[372603113,1752701446504,-460.0,0.00019839,2]
[372603115,1752701446514,-460.0,0.00019839,2]
[372603118,1752701446525,-460.0,0.00019839,2]
[372603120,1752701446535,-460.0,0.00019839,2]
[372603122,1752701446545,-460.0,0.00019839,2]
[372603123,1752701446555,-502.35,0.00019839,2]
[372603126,1752701446564,-460.0,0.00019839,2]
[372603128,1752701446574,-460.0,0.00019839,2]
[372603130,1752701446583,-460.0,0.00019839,2]
[372603132,1752701446593,-460.0,0.00019839,2]
[372603134,1752701446603,-973.31,0.00019839,2]
[372603136,1752701446613,-508.47,0.00019839,2]
[372603138,1752701446623,-4139.78,0.00019839,2]
[372603140,1752701446632,-460.0,0.00019839,2]
[372603142,1752701446641,-362.12,0.00019839,2]
[372603144,1752701446651,-905.56,0.00019839,2]
[372603146,1752701446660,-460.0,0.00019839,2]
[372603148,1752701446670,-460.0,0.00019839,2]
[372603150,1752701446680,-3592.4174374,0.00019866,2]
[372603152,1752701446689,-848.19794595,0.00019921,2]
[372603154,1752701446703,-1000.0,0.00019921,2]
[372603156,1752701446713,-1084.00273374,0.00019921,2]
[372603158,1752701446723,-500.0,0.00019921,2]
[372603160,1752701446733,-1001.83571431,0.00019921,2]
[372603162,1752701446744,-1000.0,0.00019921,2]
[372603164,1752701446753,-1000.0,0.00019921,2]
[372603166,1752701446763,-1000.0,0.00019921,2]
[372603168,1752701446773,-1000.0,0.00019921,2]
[372603170,1752701446784,-460.0,0.00019923,2]
[372603172,1752701446795,-2420.32,0.00019923,2]
[372603174,1752701446804,-764.07,0.00019923,2]
[372603176,1752701446817,-575.01,0.00019923,2]
[372603178,1752701446827,-1155.56,0.00019923,2]
[372603180,1752701446837,-2407.79,0.00019923,2]
[372603182,1752701446847,-57938.77700826,0.00019989,2]
[372603184,1752701446857,-870.2371693,0.00019998,2]
[372603186,1752701446867,-300.0,0.0002,2]
[372603188,1752701446876,-1169.66967033,0.0002,2]
[372603190,1752701446888,-3546.5465558,0.0002,20]
[372603192,1752701446899,-245.39485352,0.0002,7]
[372603194,1752701446909,-1293.99017771,0.0002,5]
[372603196,1752701446919,-307.0,0.0002,2]
[372603198,1752701446928,-799.99233525,0.0002,2]
[372603200,1752701446938,-1000.0,0.00020021,2]
[372603202,1752701446947,-1000.0,0.00020021,2]
[372603204,1752701446956,-500.0,0.00020021,2]
[372603206,1752701446966,-493.16,0.00020102,3]
[372603208,1752701446975,-1772.92,0.00020103,3]
[372603210,1752701446986,-986.3,0.00020103,3]
[372603212,1752701446995,-3592.4174374,0.00020107,2]
[372603214,1752701447007,-460.0,0.00020112,2]
[372603216,1752701447017,-460.0,0.00020112,2]
[372603218,1752701447027,-460.0,0.00020112,2]
[372603220,1752701447036,-460.0,0.00020112,2]
[372603222,1752701447046,-460.0,0.00020112,2]
[372603224,1752701447055,-591.97,0.00020112,2]
[372603226,1752701447065,-460.0,0.00020112,2]
[372603228,1752701447075,-460.0,0.00020112,2]
[372603230,1752701447084,-3589.75,0.00020112,2]
[372603232,1752701447094,-2048.29,0.00020112,2]
[372603234,1752701447104,-460.0,0.00020112,2]
[372603236,1752701447114,-543.61,0.00020112,2]
[372603238,1752701447124,-460.0,0.00020112,2]
[372603240,1752701447135,-460.0,0.00020112,2]
[372603242,1752701447146,-677.6,0.00020112,2]
[372603245,1752701447159,-460.0,0.00020112,2]
[372603247,1752701447168,-460.0,0.00020112,2]
[372603249,1752701447178,-460.0,0.00020112,2]
[372603251,1752701447188,-460.0,0.00020112,2]
[372603253,1752701447198,-1529.53,0.00020112,2]
[372603255,1752701447208,-460.0,0.00020112,2]
[372603257,1752701447217,-460.0,0.00020112,2]
[372603259,1752701447227,-460.0,0.00020112,2]
[372603261,1752701447237,-2116.11,0.00020112,2]
[372603263,1752701447246,-460.0,0.00020112,2]
[372603265,1752701447255,-460.0,0.00020112,2]
[372603267,1752701447265,-460.0,0.00020112,2]
[372603269,1752701447275,-460.0,0.00020112,2]
[372603271,1752701447285,-460.0,0.00020112,2]
[372603273,1752701447295,-1323.64,0.00020112,2]
[372603275,1752701447305,-460.0,0.00020112,2]
[372603277,1752701447314,-1485.63,0.00020112,2]
[372603279,1752701447324,-460.0,0.00020112,2]
[372603281,1752701447333,-460.0,0.00020112,2]
[372603283,1752701447343,-872.37,0.00020112,2]
[372603285,1752701447353,-460.0,0.00020112,2]
[372603287,1752701447362,-460.0,0.00020112,2]
[372603289,1752701447372,-460.0,0.00020112,2]
[372603291,1752701447382,-460.0,0.00020112,2]
[372603293,1752701447391,-460.0,0.00020112,2]
[372603295,1752701447402,-460.0,0.00020112,2]
[372603297,1752701447412,-460.0,0.00020113,2]
[372603299,1752701447421,-460.0,0.00020113,2]
[372603301,1752701447430,-460.0,0.00020113,2]
[372603303,1752701447440,-460.0,0.00020113,2]
[372603305,1752701447449,-460.0,0.00020113,2]
[372603307,1752701447459,-460.0,0.00020113,2]
[372603309,1752701447468,-460.0,0.00020113,2]
[372603311,1752701447478,-460.0,0.00020113,2]
[372603313,1752701447487,-460.0,0.00020113,2]
[372603315,1752701447496,-460.0,0.00020113,2]
[372603316,1752701447506,-460.0,0.00020113,2]
[372603317,1752701447515,-502.35,0.00020113,2]
[372603318,1752701447524,-460.0,0.00020113,2]
[372603319,1752701447535,-460.0,0.00020113,2]
[372603320,1752701447544,-460.0,0.00020113,2]
[372603321,1752701447554,-973.31,0.00020113,2]
[372603322,1752701447564,-4139.78,0.00020113,2]
[372603323,1752701447573,-460.0,0.00020113,2]
[372603324,1752701447583,-905.56,0.00020113,2]
[372603325,1752701447592,-582.75,0.00020113,2]
[372603326,1752701447602,-460.0,0.00020113,2]
[372603327,1752701447611,-1500.0,0.00020168,2]
[372603329,1752701447621,-312.359238,0.00020187,2]
[372603331,1752701447630,-479.45815707,0.00020197,2]
[372603333,1752701447640,-2420.32,0.00020197,2]
[372603335,1752701447650,-764.07,0.00020197,2]
[372603337,1752701447660,-575.01,0.00020197,2]
[372603339,1752701447670,-1155.56,0.00020197,2]
[372603341,1752701447680,-2407.79,0.00020197,2]
[372603343,1752701447689,-420.0,0.00020231,2]
[372603345,1752701447699,-541.0,0.0002033,2]
[372603347,1752701447708,-3592.4174374,0.00020348,3]
[372603349,1752701447718,-160.0,0.00020383,2]
[372603351,1752701447728,-196.86,0.00020386,2]
[372603353,1752701447738,-460.0,0.00020386,2]
[372603355,1752701447747,-460.0,0.00020386,2]
[372603357,1752701447756,-460.0,0.00020386,2]
[372603359,1752701447766,-460.0,0.00020386,2]
[372603361,1752701447775,-460.0,0.00020386,2]
[372603363,1752701447786,-3589.75,0.00020386,2]
[372603366,1752701447797,-2048.29,0.00020386,2]
[372603368,1752701447809,-460.0,0.00020386,2]
[372603370,1752701447819,-543.61,0.00020386,2]
[372603372,1752701447828,-460.0,0.00020386,2]
[372603374,1752701447838,-460.0,0.00020386,2]
[372603376,1752701447848,-677.6,0.00020386,2]
[372603378,1752701447857,-460.0,0.00020386,2]
[372603380,1752701447867,-460.0,0.00020386,2]
[372603382,1752701447876,-460.0,0.00020386,2]
[372603383,1752701447888,-460.0,0.00020386,2]
[372603385,1752701447898,-1529.53,0.00020386,2]
[372603388,1752701447907,-460.0,0.00020386,2]
[372603390,1752701447917,-460.0,0.00020386,2]
[372603392,1752701447927,-460.0,0.00020386,2]
[372603394,1752701447936,-2116.11,0.00020386,2]
[372603396,1752701447945,-460.0,0.00020386,2]
[372603398,1752701447955,-460.0,0.00020386,2]
[372603400,1752701447964,-460.0,0.00020386,2]
[372603402,1752701447975,-460.0,0.00020386,2]
[372603404,1752701447984,-460.0,0.00020386,2]
[372603406,1752701447994,-1323.64,0.00020386,2]
[372603408,1752701448003,-571.35,0.00020386,2]